bitfinex-derivatives/quotes_BTCF0:USTF0_20250528
["timestamp","ask_amount","ask_price","bid_price","bid_amount"]
[1748436380597,0.65334617,109020.0,109010.0,0.37636831]
[1748436380793,0.65334617,109020.0,109010.0,0.55830348]
[1748436382401,0.65334617,109020.0,109010.0,0.61560348]
[1748436383506,0.65334617,109020.0,109010.0,0.61561082]
[1748436384604,0.77450107,109020.0,109010.0,0.61561082]
[1748436385203,0.65334617,109020.0,109010.0,0.61561082]
[1748436385402,0.77450107,109020.0,109010.0,0.64571082]
[1748436386004,0.77450107,109020.0,109010.0,0.67791082]
[1748436386407,0.65334617,109020.0,109010.0,0.67791082]
[1748436387604,0.65334617,109020.0,109010.0,0.67516082]
[1748436387805,0.65334617,109020.0,109010.0,0.67517104]
[1748436389002,0.65334617,109020.0,109010.0,0.66385527]
[1748436389506,0.65334617,109020.0,109010.0,0.5215176]
[1748436390103,0.65334617,109020.0,109010.0,0.5242676]
[1748436392211,0.65334617,109020.0,109010.0,0.52429328]
[1748436392602,0.65334617,109020.0,109010.0,0.55549328]
[1748436393315,0.6398881,109020.0,109010.0,0.8325605]
[1748436393613,0.2466881,109020.0,109010.0,0.70333171]
[1748436393810,0.2143681,109020.0,109010.0,0.75497141]
[1748436394009,0.2143681,109020.0,109010.0,0.84675191]
[1748436394204,0.2144881,109020.0,109010.0,0.96312925]
[1748436394803,0.2144881,109020.0,109010.0,0.84675191]
[1748436395007,0.2143681,109020.0,109010.0,0.84675191]
[1748436395204,0.2144881,109020.0,109010.0,2.34675191]
[1748436395711,0.2144881,109020.0,109010.0,2.25497141]
[1748436395916,0.2144881,109020.0,109010.0,2.35997507]
[1748436396215,0.2144881,109020.0,109010.0,2.37338658]
[1748436398518,0.2144881,109020.0,109010.0,2.43909642]
[1748436399007,0.2144881,109020.0,109010.0,2.28245306]
[1748436399715,0.2144881,109020.0,109010.0,2.26904155]
[1748436402513,0.19958693,109020.0,109010.0,2.32068125]
[1748436402717,0.19958693,109020.0,109010.0,2.46312925]
[1748436403712,0.19958693,109020.0,109010.0,2.56806853]
[1748436403919,0.19958693,109020.0,109010.0,2.4818514]
[1748436404217,0.19958693,109020.0,109010.0,2.3900709]
[1748436407818,0.19958693,109020.0,109010.0,2.38999451]
[1748436408122,0.19958693,109020.0,109010.0,2.44154723]
[1748436409330,0.19958693,109020.0,109010.0,2.39000009]
[1748436409713,0.19958693,109020.0,109010.0,2.44155916]
[1748436409910,0.19958693,109020.0,109010.0,2.39000009]
[1748436410221,0.19958693,109020.0,109010.0,2.26889041]
[1748436412325,0.23138693,109020.0,109010.0,2.26889041]
[1748436412916,0.35249661,109020.0,109010.0,1.82561737]
[1748436413114,0.86450629,109020.0,109010.0,0.49993665]
[1748436413429,0.86450629,109020.0,109010.0,0.33029247]
[1748436413628,0.87803348,109020.0,109010.0,0.33031279]
[1748436415932,0.75698733,109020.0,109010.0,0.33031279]
[1748436417720,0.75698733,109020.0,109010.0,0.33030158]
[1748436419228,1.11778733,109020.0,109010.0,0.33030158]
[1748436422023,1.11778733,109020.0,109010.0,0.33029758]
[1748436424626,1.11778733,109020.0,109010.0,0.27775383]
[1748436424832,1.27908696,109020.0,109010.0,0.27775383]
[1748436425131,1.03674054,109020.0,109010.0,0.27775383]
[1748436425329,1.27908696,109020.0,109010.0,0.27775383]
[1748436425829,1.27908696,109020.0,109010.0,0.23247016]
[1748436426034,1.27908204,109020.0,109010.0,0.17802316]
[1748436426223,1.37081608,109020.0,109010.0,0.10269856]
[1748436426429,1.37081608,109020.0,109010.0,0.25275]
[1748436427432,0.183384,109010.0,109000.0,0.15763606]
[1748436427630,0.72605721,109010.0,109000.0,0.25631996]
[1748436427825,0.72605721,109010.0,109000.0,0.20511008]
[1748436428633,0.72605721,109010.0,109000.0,0.20711008]
[1748436429131,0.72605721,109010.0,109000.0,0.07916818]
[1748436429322,0.72605721,109010.0,109000.0,0.27652262]
[1748436429522,0.76614644,109010.0,109000.0,0.27652262]
[1748436429731,0.1834009,109000.0,108990.0,0.00275]
[1748436430034,0.80106577,109000.0,108990.0,0.0380497]
[1748436430223,0.1834177,108990.0,108980.0,0.00013818]
[1748436430425,0.1834177,108990.0,108980.0,0.28229041]
[1748436430426,0.73577895,108990.0,108980.0,0.28229041]
[1748436431118,0.85695216,108990.0,108980.0,0.28229041]
[1748436431323,0.85695216,108990.0,108980.0,0.23774416]
[1748436431533,0.1834513,108970.0,108960.0,0.61601195]
[1748436431843,0.5442513,108970.0,108960.0,2.05916076]
[1748436432034,0.61184532,108970.0,108960.0,1.93839256]
[1748436432428,0.61184532,108970.0,108960.0,2.12186066]
[1748436432736,0.25104532,108970.0,108960.0,2.12186066]
[1748436433740,0.25104532,108970.0,108960.0,2.12386066]
[1748436433925,0.03509402,108970.0,108960.0,2.56133075]
[1748436434125,0.00239402,108970.0,108960.0,2.61896485]
[1748436434437,0.18596532,108970.0,108960.0,2.61889049]
[1748436434938,0.18596532,108970.0,108960.0,2.61989049]
[1748436435927,0.00251402,108970.0,108960.0,2.61989049]
[1748436436130,0.18596532,108970.0,108960.0,2.61989049]
[1748436436337,0.00239402,108970.0,108960.0,2.96166248]
[1748436436536,0.00239402,108970.0,108960.0,0.83311531]
[1748436436537,0.18596532,108970.0,108960.0,0.83311531]
[1748436436737,0.18596532,108970.0,108960.0,0.76744058]
[1748436437040,0.21766532,108970.0,108960.0,0.99871728]
[1748436437232,0.21766532,108970.0,108960.0,2.49871728]
[1748436437433,0.21766532,108970.0,108960.0,2.12464497]
[1748436438443,0.21766532,108970.0,108960.0,2.12463719]
[1748436438941,0.24876532,108970.0,108960.0,1.81999588]
[1748436439140,0.60956532,108970.0,108960.0,2.12463719]
[1748436439545,0.60956532,108970.0,108960.0,1.94116909]
[1748436439730,0.64056532,108970.0,108960.0,1.94116909]
[1748436440246,0.64056532,108970.0,108960.0,2.12463719]
[1748436440430,0.64056532,108970.0,108960.0,1.94116909]
[1748436440630,0.64056532,108970.0,108960.0,2.12463719]
[1748436441330,0.64056532,108970.0,108960.0,1.94116909]
[1748436441940,0.64056532,108970.0,108960.0,2.12463719]
[1748436442536,0.76173853,108970.0,108960.0,0.2298234]
[1748436442742,0.64056532,108970.0,108960.0,0.34284569]
[1748436442939,0.60956532,108970.0,108960.0,0.31537321]
[1748436443145,0.60956532,108970.0,108960.0,1.84284569]
[1748436443352,0.57834532,108970.0,108960.0,2.02631379]
[1748436443641,0.57846532,108970.0,108960.0,2.02631379]
[1748436443846,0.57834532,108970.0,108960.0,2.02631379]
[1748436444040,0.57846532,108970.0,108960.0,2.02631379]
[1748436444243,0.57846532,108970.0,108960.0,2.03082934]
[1748436444843,0.57846532,108970.0,108960.0,2.12765274]
[1748436444844,0.21766532,108970.0,108960.0,2.12765274]
[1748436445148,0.21766532,108970.0,108960.0,2.40436262]
[1748436445538,0.21766532,108970.0,108960.0,2.47003735]
[1748436445837,0.21766532,108970.0,108960.0,2.83083735]
[1748436446344,0.21766532,108970.0,108960.0,2.65726172]
[1748436446541,0.21766532,108970.0,108960.0,2.68343141]
[1748436446749,0.21766532,108970.0,108960.0,2.77843876]
[1748436447136,0.18596532,108970.0,108960.0,2.77843876]
[1748436447343,0.18596532,108970.0,108960.0,2.56520892]
[1748436447938,0.18584532,108970.0,108960.0,2.56520892]
[1748436448645,0.18584532,108970.0,108960.0,2.60963169]
[1748436448845,0.18596532,108970.0,108960.0,2.60963169]
[1748436449352,0.18596532,108970.0,108960.0,2.56520892]
[1748436449649,0.18596532,108970.0,108960.0,2.60963169]
[1748436450641,0.21656532,108970.0,108960.0,2.60963169]
[1748436450844,0.21656532,108970.0,108960.0,2.60965798]
[1748436451352,0.21656532,108970.0,108960.0,2.19645161]
[1748436451552,0.21656532,108970.0,108960.0,2.55725161]
[1748436451942,0.18596532,108970.0,108960.0,2.55725161]
[1748436452338,0.18596532,108970.0,108960.0,2.62292634]
[1748436452743,0.21656532,108970.0,108960.0,2.62292634]
[1748436452951,0.21656532,108970.0,108960.0,2.56000161]
[1748436453355,0.21656532,108970.0,108960.0,2.62567634]
[1748436453653,0.21656532,108970.0,108960.0,2.67195281]
[1748436453953,0.21656532,108970.0,108960.0,2.5507796]
[1748436454841,0.21656532,108970.0,108960.0,2.70634824]
[1748436455238,0.21656532,108970.0,108960.0,2.82752145]
[1748436455449,0.2153006,108970.0,108960.0,2.82752145]
[1748436455652,0.20165818,108970.0,108960.0,2.82752145]
[1748436456248,0.20165818,108970.0,108960.0,2.70634824]
[1748436456447,0.23365818,108970.0,108960.0,2.70634824]
[1748436456642,0.23365818,108970.0,108960.0,2.71764824]
[1748436456947,0.23365818,108970.0,108960.0,2.65197351]
[1748436457143,0.23365818,108970.0,108960.0,2.3473322]
[1748436457345,0.23365818,108970.0,108960.0,2.10772861]
[1748436457547,0.74643139,108970.0,108960.0,0.36037947]
[1748436457853,0.62525818,108970.0,108960.0,0.41099398]
[1748436458055,0.62525818,108970.0,108960.0,2.01600854]
[1748436458252,0.62525818,108970.0,108960.0,2.02737132]
[1748436458551,0.62525818,108970.0,108960.0,2.14854453]
[1748436459352,0.62525818,108970.0,108960.0,2.03246341]
[1748436461955,0.62525818,108970.0,108960.0,1.88381772]
[1748436462251,0.62525818,108970.0,108960.0,1.82003162]
[1748436462252,0.74643139,108970.0,108960.0,1.82003162]
[1748436462456,0.62525818,108970.0,108960.0,0.32003162]
[1748436463560,0.6276522,108970.0,108960.0,0.32003385]
[1748436464346,0.6276522,108970.0,108960.0,0.3245494]
[1748436465352,0.6276522,108970.0,108960.0,0.42790984]
[1748436465544,0.74882541,108970.0,108960.0,0.3754399]
[1748436465746,0.74882541,108970.0,108960.0,0.32454657]
[1748436466056,0.74882541,108970.0,108960.0,0.27195946]
[1748436467849,0.74882541,108970.0,108960.0,0.27196107]
[1748436468048,0.6276522,108970.0,108960.0,0.27196132]
[1748436468361,0.74882541,108970.0,108960.0,0.27196132]
[1748436469064,1.08840548,108970.0,108960.0,8e-08]
[1748436469256,1.19720629,108970.0,108950.0,0.00013818]
[1748436469560,0.1835015,108940.0,108930.0,1.75829504]
[1748436469763,0.66547471,108940.0,108930.0,0.29]
[1748436469950,1.09077471,108940.0,108930.0,0.29]
[1748436470149,1.10420531,108940.0,108930.0,0.29]
[1748436472760,1.13560531,108940.0,108930.0,0.29]
[1748436474549,1.0144321,108940.0,108930.0,0.29]
[1748436474749,0.6402015,108940.0,108930.0,0.62216419]
[1748436474955,0.6402015,108940.0,108930.0,0.70596419]
[1748436474956,0.6403215,108940.0,108930.0,0.70596419]
[1748436475262,0.2795215,108940.0,108930.0,0.70596419]
[1748436475453,0.2794015,108940.0,108930.0,0.70596419]
[1748436475758,0.2795215,108940.0,108930.0,2.20596419]
[1748436475955,0.2468215,108940.0,108930.0,2.20596419]
[1748436476861,0.2149015,108940.0,108930.0,2.45601998]
[1748436477046,0.2150215,108940.0,108930.0,2.49998631]
[1748436477747,0.2452215,108940.0,108930.0,2.49998631]
[1748436477948,0.2451015,108940.0,108930.0,2.3788131]
[1748436478148,0.2452215,108940.0,108930.0,2.49998631]
[1748436478758,0.2452215,108940.0,108930.0,2.13918631]
[1748436480460,0.2452215,108940.0,108930.0,2.13917491]
[1748436480650,0.2452215,108940.0,108930.0,2.0180017]
[1748436480850,0.2452215,108940.0,108930.0,1.95565641]
[1748436481052,0.2452215,108940.0,108930.0,2.13917491]
[1748436481247,0.2452215,108940.0,108930.0,2.55002675]
[1748436481451,0.2452215,108940.0,108930.0,2.18922675]
[1748436482552,0.2452215,108940.0,108930.0,2.55002675]
[1748436482959,0.2452215,108940.0,108930.0,2.36650825]
[1748436483160,0.2452215,108940.0,108930.0,2.00570825]
[1748436483662,0.2452215,108940.0,108930.0,2.11075751]
[1748436484262,0.2452215,108940.0,108930.0,2.29427591]
[1748436484558,0.2452215,108940.0,108930.0,2.06683087]
[1748436484765,0.2452215,108940.0,108930.0,2.11532619]
[1748436485056,0.2452215,108940.0,108930.0,1.97405298]
[1748436485259,0.6060215,108940.0,108930.0,1.97405298]
[1748436486252,0.6060215,108940.0,108930.0,1.97680298]
[1748436486557,0.6060215,108940.0,108930.0,0.47680298]
[1748436486757,0.6060215,108940.0,108930.0,0.49690298]
[1748436487154,0.6060215,108940.0,108930.0,1.99690298]
[1748436488863,0.6060215,108940.0,108930.0,1.90284308]
[1748436489060,0.6060215,108940.0,108930.0,1.99699572]
[1748436490061,0.72719471,108940.0,108930.0,1.99699572]
[1748436490261,0.72719471,108940.0,108930.0,1.97689572]
[1748436490659,0.72719471,108940.0,108930.0,1.91319572]
[1748436490860,0.72719471,108940.0,108930.0,1.75801695]
[1748436491455,0.72719471,108940.0,108930.0,1.73054447]
[1748436491662,0.72719471,108940.0,108930.0,1.75801695]
[1748436492659,0.72719471,108940.0,108930.0,1.70542984]
[1748436492860,0.72719471,108940.0,108930.0,1.75801695]
[1748436493064,0.72719471,108940.0,108930.0,1.75805942]
[1748436493970,0.72719471,108940.0,108930.0,1.80824908]
[1748436495167,0.72719471,108940.0,108930.0,1.7807766]
[1748436495358,0.72719471,108940.0,108930.0,1.91329834]
[1748436496670,0.72958873,108940.0,108930.0,1.91329834]
[1748436497366,0.72958873,108940.0,108930.0,1.91337349]
[1748436499281,0.60841552,108940.0,108930.0,1.91337349]
[1748436499468,0.72958873,108940.0,108930.0,1.91337349]
[1748436500278,0.60841552,108940.0,108930.0,1.80832423]
[1748436500574,0.60841552,108940.0,108930.0,1.86192423]
[1748436501474,0.60841552,108940.0,108930.0,1.96700051]
[1748436501678,0.72958873,108940.0,108930.0,1.75811271]
[1748436501971,0.72958873,108940.0,108930.0,1.73064023]
[1748436502173,0.72958873,108940.0,108930.0,0.25811271]
[1748436502879,0.72958873,108940.0,108930.0,0.16140671]
[1748436503264,0.76969998,108940.0,108930.0,0.15865671]
[1748436503664,0.76969998,108940.0,108930.0,0.20280084]
[1748436504063,0.76970297,108940.0,108930.0,0.04865968]
[1748436504264,0.76075377,108940.0,108930.0,0.30138068]
[1748436504467,0.76075377,108940.0,108930.0,0.28865968]
[1748436505674,0.76074723,108940.0,108930.0,0.28865968]
[1748436505870,0.76074723,108940.0,108930.0,0.24726555]
[1748436510367,0.76074723,108940.0,108930.0,0.21390235]
[1748436510971,0.76074723,108940.0,108930.0,0.2184179]
[1748436512874,0.76074723,108940.0,108930.0,0.262107]
[1748436513784,0.76074723,108940.0,108930.0,0.2311332]
[1748436513982,0.76074723,108940.0,108930.0,0.27482943]
[1748436514172,0.76078704,108940.0,108930.0,0.27482943]
[1748436514387,0.76078704,108940.0,108930.0,0.2184179]
[1748436514575,0.76078704,108940.0,108930.0,0.23113376]
[1748436514773,0.76078704,108940.0,108930.0,0.2184179]
[1748436514973,0.76078704,108940.0,108930.0,0.2311406]
[1748436515186,0.76078704,108940.0,108930.0,0.2184179]
[1748436515483,0.76078704,108940.0,108930.0,0.23114043]
[1748436515689,0.76078704,108940.0,108930.0,0.2184179]
[1748436516185,0.76078704,108940.0,108930.0,0.23113535]
[1748436516581,0.76078704,108940.0,108930.0,0.2184179]
[1748436516785,0.76078704,108940.0,108930.0,0.23113521]
[1748436516987,0.76078704,108940.0,108930.0,0.2184179]
[1748436519074,0.76078704,108940.0,108930.0,0.23112644]
[1748436519277,0.75183751,108940.0,108930.0,0.2184179]
[1748436520289,0.6306643,108940.0,108930.0,0.2184179]
[1748436520480,0.75183751,108940.0,108930.0,0.2184179]
[1748436522482,0.75184493,108940.0,108930.0,0.2184179]
[1748436523089,0.78324493,108940.0,108930.0,0.2184179]
[1748436523584,0.82619165,108940.0,108930.0,0.2184179]
[1748436526082,0.70501844,108940.0,108930.0,0.2184179]
[1748436526597,0.82619165,108940.0,108930.0,0.2184179]
[1748436526794,0.66195172,108940.0,108930.0,0.2895755]
[1748436527091,0.75184493,108940.0,108930.0,0.3792755]
[1748436527285,0.75172493,108940.0,108930.0,0.3792755]
[1748436527690,0.75184493,108940.0,108930.0,0.3792755]
[1748436528195,0.75185061,108940.0,108930.0,0.3792755]
[1748436531188,0.75186583,108940.0,108930.0,0.37925775]
[1748436531786,0.63069262,108940.0,108930.0,0.37925775]
[1748436531987,0.75186583,108940.0,108930.0,0.33559038]
[1748436533392,0.63069262,108940.0,108930.0,0.33559038]
[1748436533589,0.75186583,108940.0,108930.0,0.3792705]
[1748436535397,0.75188556,108940.0,108930.0,0.3792705]
[1748436539501,0.78288556,108940.0,108930.0,0.3792705]
[1748436539701,0.78288556,108940.0,108930.0,0.37926365]
[1748436540792,0.78288556,108940.0,108930.0,0.21303523]
[1748436540995,0.78288556,108940.0,108930.0,0.1681113]
[1748436541304,0.78288556,108940.0,108930.0,0.4081113]
[1748436543300,0.78288556,108940.0,108930.0,0.46069841]
[1748436543999,0.66170259,108940.0,108930.0,0.46069841]
[1748436544206,0.7828758,108940.0,108930.0,0.46069841]
[1748436544411,0.7828758,108940.0,108930.0,0.51042209]
[1748436545196,0.7828758,108940.0,108930.0,0.46069841]
[1748436545400,0.66170259,108940.0,108930.0,0.46069841]
[1748436545595,0.7828758,108940.0,108930.0,0.46069841]
[1748436545790,0.66170259,108940.0,108930.0,0.46069841]
[1748436546002,0.78302,108940.0,108930.0,0.46069841]
[1748436546706,0.78302,108940.0,108930.0,0.5104233]
[1748436547913,0.90433741,108940.0,108930.0,0.4877233]
[1748436548205,0.78302099,108940.0,108930.0,0.43799841]
[1748436549194,0.78302099,108940.0,108930.0,0.4877266]
[1748436549710,0.78302099,108940.0,108930.0,0.4207266]
[1748436550397,0.78302099,108940.0,108930.0,0.37099841]
[1748436552513,0.78304681,108940.0,108930.0,0.3710058]
[1748436553596,0.78304681,108940.0,108930.0,0.42075198]
[1748436554500,0.78304681,108940.0,108930.0,0.51005198]
[1748436554710,0.78304681,108940.0,108930.0,2.01005198]
[1748436555298,0.78304681,108940.0,108930.0,0.4603058]
[1748436556715,0.6617294,108940.0,108930.0,0.4603058]
[1748436556905,0.78304681,108940.0,108930.0,0.4603058]
[1748436557412,0.78304681,108940.0,108930.0,0.4364058]
[1748436558215,0.78304681,108940.0,108930.0,0.3710058]
[1748436560917,0.5691294,108940.0,108930.0,0.57957174]
[1748436561223,0.23954516,108940.0,108930.0,0.53814255]
[1748436561417,0.23209679,108940.0,108930.0,0.48555544]
[1748436561613,0.23221679,108940.0,108930.0,0.66907174]
[1748436561814,0.19919679,108940.0,108930.0,0.66907174]
[1748436562116,0.19931679,108940.0,108930.0,0.66907174]
[1748436562511,0.19931679,108940.0,108930.0,2.2216275]
[1748436563115,0.19931679,108940.0,108930.0,2.6653484]
[1748436563311,0.19931679,108940.0,108930.0,2.78082222]
[1748436563511,0.19931679,108940.0,108930.0,2.71511429]
[1748436563717,0.18440585,108940.0,108930.0,2.92327213]
[1748436563913,0.18428585,108940.0,108930.0,2.92327213]
[1748436564220,0.18440585,108940.0,108930.0,2.92327213]
[1748436564626,0.18440585,108940.0,108930.0,2.83147613]
[1748436565323,0.18440585,108940.0,108930.0,2.93636117]
[1748436565528,0.18440585,108940.0,108930.0,2.8856153]
[1748436565919,0.18440585,108940.0,108930.0,2.79379451]
[1748436569823,0.18440585,108940.0,108930.0,2.7928479]
[1748436570223,0.21840585,108940.0,108930.0,2.79275214]
[1748436574932,0.5642947,108940.0,108930.0,1.97311988]
[1748436575140,0.5966947,108940.0,108930.0,1.90435087]
[1748436575324,0.71797182,108940.0,108930.0,0.37045087]
[1748436576829,0.71797182,108940.0,108930.0,0.41970043]
[1748436577028,0.5966947,108940.0,108930.0,0.37045087]
[1748436578333,0.5966947,108940.0,108930.0,0.37046462]
[1748436578524,0.5966947,108940.0,108930.0,0.27473803]
[1748436578926,0.5966947,108940.0,108930.0,0.37046462]
[1748436580527,0.71797182,108940.0,108930.0,0.37046462]
[1748436581534,0.5966947,108940.0,108930.0,0.46426926]
[1748436581740,0.5966947,108940.0,108930.0,0.70935804]
[1748436581948,0.5641747,108940.0,108930.0,0.76705804]
[1748436582244,0.2034947,108940.0,108930.0,1.24595338]
[1748436582445,0.2033747,108940.0,108930.0,2.81158485]
[1748436582645,0.2034947,108940.0,108930.0,2.76230417]
[1748436582841,0.2034947,108940.0,108930.0,2.64102705]
[1748436583734,0.2034947,108940.0,108930.0,2.57539558]
[1748436584845,0.2034947,108940.0,108930.0,2.21459558]
[1748436585539,0.2034947,108940.0,108930.0,2.26712155]
[1748436585738,0.2034947,108940.0,108930.0,2.08360525]
[1748436585938,0.2034947,108940.0,108930.0,2.26712175]
[1748436587048,0.2034947,108940.0,108930.0,2.08360525]
[1748436587546,0.2034947,108940.0,108930.0,2.02590525]
[1748436588136,0.2034947,108940.0,108930.0,2.07970525]
[1748436588341,0.2034947,108940.0,108930.0,2.02724033]
[1748436589346,0.2034947,108940.0,108930.0,2.05430654]
[1748436589535,0.2034947,108940.0,108930.0,2.15909582]
[1748436591047,0.2034947,108940.0,108930.0,2.05430654]
[1748436591732,0.18858214,108940.0,108930.0,2.17068388]
[1748436593247,0.22108214,108940.0,108930.0,2.17068388]
[1748436593452,0.58188214,108940.0,108930.0,2.27570863]
[1748436593639,0.58188214,108940.0,108930.0,1.93934033]
[1748436593950,0.58188214,108940.0,108930.0,2.0049718]
[1748436594142,0.58188214,108940.0,108930.0,1.93934033]
[1748436594543,0.58188214,108940.0,108930.0,1.81806321]
[1748436595742,0.58188214,108940.0,108930.0,1.88372071]
[1748436597847,0.58188214,108940.0,108930.0,1.81808924]
[1748436598153,0.70319097,108940.0,108930.0,2.00502954]
[1748436599352,0.70319097,108940.0,108930.0,2.1433984]
[1748436600046,0.70319097,108940.0,108930.0,2.14340783]
[1748436601247,0.70319097,108940.0,108930.0,2.09403604]
[1748436602439,0.70319097,108940.0,108930.0,2.14340783]
[1748436603243,0.70319097,108940.0,108930.0,1.97272721]
[1748436603439,0.70319097,108940.0,108930.0,2.09403604]
[1748436604254,0.70319097,108940.0,108930.0,2.14344121]
[1748436605159,0.70319097,108940.0,108930.0,2.02213238]
[1748436605349,0.70319097,108940.0,108930.0,2.14344121]
[1748436605746,0.58188214,108940.0,108930.0,2.14344121]
[1748436607952,0.58188214,108940.0,108930.0,2.02213238]
[1748436608156,0.58188214,108940.0,108930.0,2.14344121]
[1748436609853,0.58188214,108940.0,108930.0,2.24846596]
[1748436610557,0.70319097,108940.0,108930.0,2.24846596]
[1748436610958,0.70319097,108940.0,108930.0,2.14344121]
[1748436611353,0.68827831,108940.0,108930.0,2.25981855]
[1748436611746,0.68827831,108940.0,108930.0,2.24856691]
[1748436614854,0.68827831,108940.0,108930.0,2.12725808]
[1748436615057,0.68827831,108940.0,108930.0,2.10435808]
[1748436615569,0.68827831,108940.0,108930.0,2.22566691]
[1748436617267,0.68827831,108940.0,108930.0,2.2257161]
[1748436618367,0.68827831,108940.0,108930.0,2.1205904]
[1748436619477,0.68827831,108940.0,108930.0,2.1518904]
[1748436619670,0.56696948,108940.0,108930.0,2.26826774]
[1748436620763,0.53446948,108940.0,108930.0,2.26826774]
[1748436621068,0.53446948,108940.0,108930.0,2.20263627]
[1748436621264,0.51955684,108940.0,108930.0,2.20263627]
[1748436621469,0.51955684,108940.0,108930.0,2.29441677]
[1748436621769,0.51955684,108940.0,108930.0,2.36024293]
[1748436622767,0.51955684,108940.0,108930.0,2.29441677]
[1748436622968,0.51955684,108940.0,108930.0,2.36024311]
[1748436623766,0.51955684,108940.0,108930.0,2.29441677]
[1748436625472,0.51955684,108940.0,108930.0,2.36024496]
[1748436625674,0.64086567,108940.0,108930.0,2.36024496]
[1748436625868,0.64086567,108940.0,108930.0,2.36026196]
[1748436626067,0.64086567,108940.0,108930.0,2.29443377]
[1748436627574,0.28006567,108940.0,108930.0,2.71777823]
[1748436627774,0.28006567,108940.0,108930.0,2.24060089]
[1748436628164,0.28006567,108940.0,108930.0,2.21312841]
[1748436628364,0.28006567,108940.0,108930.0,2.24060089]
[1748436628675,0.28006567,108940.0,108930.0,2.21312841]
[1748436628974,0.28006567,108940.0,108930.0,2.24060089]
[1748436629772,0.15875684,108940.0,108930.0,2.42411729]
[1748436629979,0.12475684,108940.0,108930.0,2.90950258]
[1748436630167,0.12475684,108940.0,108930.0,2.72237283]
[1748436630573,0.12475684,108940.0,108930.0,2.67896856]
[1748436630773,0.12475684,108940.0,108930.0,2.80700321]
[1748436630968,0.12463684,108940.0,108930.0,2.80700321]
[1748436631175,0.12463684,108940.0,108930.0,2.67896856]
[1748436631678,0.12475684,108940.0,108930.0,2.67896856]
[1748436633166,0.12475684,108940.0,108930.0,2.74151302]
[1748436633373,0.10972538,108940.0,108930.0,2.74151302]
[1748436633578,0.10984538,108940.0,108930.0,2.86954767]
[1748436634474,0.10984538,108940.0,108930.0,2.8691703]
[1748436634983,0.10984538,108940.0,108930.0,2.80662584]
[1748436635182,0.10984538,108940.0,108930.0,2.8691703]
[1748436636180,0.00251402,108940.0,108930.0,1.51973067]
[1748436636480,0.18589342,108940.0,108930.0,1.42795017]
[1748436636684,0.1836194,108940.0,108930.0,2.99049463]
[1748436636868,0.1836194,108940.0,108930.0,2.86245998]
[1748436637069,0.17286726,108940.0,108930.0,2.99368887]
[1748436637985,0.17286726,108940.0,108930.0,2.99357827]
[1748436638686,0.35475788,108950.0,108940.0,0.1835001]
[1748436638877,0.35475788,108950.0,108940.0,1.30513417]
[1748436639183,0.35475788,108950.0,108940.0,1.29347891]
[1748436640277,0.35587788,108950.0,108940.0,1.29347891]
[1748436640583,0.35687788,108950.0,108940.0,1.29347891]
[1748436641086,0.26512888,108950.0,108940.0,1.29622891]
[1748436642279,0.26512888,108950.0,108940.0,2.79622891]
[1748436642987,0.26512888,108950.0,108940.0,2.79611745]
[1748436643787,0.26512888,108950.0,108940.0,2.74516145]
[1748436643987,0.26512888,108950.0,108940.0,2.65322363]
[1748436645286,0.26512888,108950.0,108940.0,2.60428766]
[1748436646384,0.26512888,108950.0,108940.0,2.48303413]
[1748436646579,0.26512888,108950.0,108940.0,2.60428766]
[1748436646785,0.30042888,108950.0,108940.0,2.60428766]
[1748436649389,0.30042888,108950.0,108940.0,2.05553413]
[1748436649590,0.33572888,108950.0,108940.0,2.01933413]
[1748436649789,0.33572888,108950.0,108940.0,2.50138766]
[1748436650492,0.33572888,108950.0,108940.0,1.95708756]
[1748436650792,0.33572888,108950.0,108940.0,2.00601317]
[1748436650991,0.33572888,108950.0,108940.0,1.82271471]
[1748436651294,0.33572888,108950.0,108940.0,1.82723026]
[1748436651490,0.69652888,108950.0,108940.0,1.82723026]
[1748436655904,0.69652888,108950.0,108940.0,2.01073036]
[1748436656194,0.69652888,108950.0,108940.0,1.74726555]
[1748436656387,0.69652888,108950.0,108940.0,1.88898887]
[1748436656587,0.69652888,108950.0,108940.0,0.38898887]
[1748436656790,0.81778241,108950.0,108940.0,0.3128771]
[1748436656990,0.81778241,108950.0,108940.0,0.3484351]
[1748436657193,0.81778241,108950.0,108940.0,0.29979581]
[1748436657694,0.81778241,108950.0,108940.0,0.24726555]
[1748436659295,0.81778241,108950.0,108940.0,0.34845105]
[1748436659494,0.81778241,108950.0,108940.0,0.24726555]
[1748436661689,0.69652888,108950.0,108940.0,0.24726555]
[1748436661901,0.81778241,108950.0,108940.0,0.24726555]
[1748436662397,0.69652888,108950.0,108940.0,0.24726555]
[1748436662602,0.81778241,108950.0,108940.0,0.24726555]
[1748436663303,1.17858241,108950.0,108940.0,0.24726555]
[1748436668797,1.27037042,108950.0,108940.0,0.24726555]
[1748436669294,1.31127171,108950.0,108940.0,0.24726555]
[1748436669503,0.183517,108930.0,108920.0,0.46266844]
[1748436669700,1.14762406,108930.0,108920.0,0.26013818]
[1748436669898,1.25662406,108930.0,108920.0,0.26013818]
[1748436670507,1.13537053,108930.0,108920.0,0.26013818]
[1748436670803,1.13537053,108930.0,108920.0,0.26213818]
[1748436671000,1.13537053,108930.0,108920.0,0.26413818]
[1748436675929,1.25662406,108930.0,108920.0,0.26413818]
[1748436676912,1.25662406,108930.0,108920.0,0.02911406]
[1748436677094,1.34843206,108930.0,108920.0,0.02911406]
[1748436677412,1.38929521,108930.0,108920.0,0.254]
[1748436678412,1.38929521,108930.0,108920.0,0.252]
[1748436678614,1.25762406,108930.0,108920.0,0.252]
[1748436678795,1.25862406,108930.0,108920.0,0.25]
[1748436679522,1.29951472,108930.0,108920.0,0.25451555]
[1748436679807,1.25862406,108930.0,108920.0,0.25451555]
[1748436680502,1.13737053,108930.0,108920.0,0.25451555]
[1748436681201,1.25862406,108930.0,108920.0,0.25451555]
[1748436681402,1.016117,108930.0,108920.0,0.25451555]
[1748436681711,1.13737053,108930.0,108920.0,0.35871555]
[1748436681909,1.13749053,108930.0,108920.0,0.35871555]
[1748436682303,1.13749053,108930.0,108920.0,0.32651555]
[1748436682611,1.13749053,108930.0,108920.0,0.25451555]
[1748436683208,1.25874406,108930.0,108920.0,0.25451555]
[1748436684515,1.0571535,108930.0,108920.0,0.25451555]
[1748436684812,1.17840703,108930.0,108920.0,0.25451555]
[1748436685602,1.29966056,108930.0,108920.0,0.25451555]
[1748436685802,1.29966056,108930.0,108920.0,0.28851555]
[1748436686003,1.0571535,108930.0,108920.0,0.28851555]
[1748436686203,1.0571535,108930.0,108920.0,0.32071555]
[1748436686204,1.17840703,108930.0,108920.0,0.32071555]
[1748436686504,1.17840703,108930.0,108920.0,0.35621555]
[1748436686705,1.13749053,108930.0,108920.0,0.35621555]
[1748436686907,1.13737053,108930.0,108920.0,0.35621555]
[1748436687201,1.13749053,108930.0,108920.0,0.35621555]
[1748436691015,1.13749053,108930.0,108920.0,0.32401555]
[1748436693016,1.016237,108930.0,108920.0,0.38368803]
[1748436693221,1.10279053,108930.0,108920.0,0.38368803]
[1748436693518,1.10267053,108930.0,108920.0,0.38368803]
[1748436693721,1.10279053,108930.0,108920.0,0.38368803]